[Event "Torneo Nuevo Centro. Jornada 11"]
[Site "Chess.com"]
[Date "2020.08.28"]
[Round "8"]
[White "Garcia, Jhoel"]
[Black "Muñoz Pantoja, Miguel"]
[Result "0-1"]
[WhiteElo "2371"]
[BlackElo "2529"]
[TimeControl "180+2"]
[EndTime "11:55:50 PDT"]
[Termination "Victoria de Indalsa por tiempo"]

1. d4 {[%clk 0:03:01.9]} 1... c5 {[%clk 0:03:00.1]} 2. c3 {[%clk 0:02:58.1]}
2... Nf6 {[%clk 0:03:01.1]} 3. Nf3 {[%clk 0:02:59.5]} 3... g6 {[%clk 0:03:01.9]}
4. Bf4 {[%clk 0:03:00]} 4... Bg7 {[%clk 0:03:03]} 5. e3 {[%clk 0:03:01.4]} 5...
O-O {[%clk 0:03:03.9]} 6. Be2 {[%clk 0:03:01.2]} 6... d6 {[%clk 0:03:04.9]} 7.
O-O {[%clk 0:03:01.3]} 7... Nc6 {[%clk 0:03:06.4]} 8. Nbd2 {[%clk 0:02:59.8]}
8... Nd5 {[%clk 0:03:05.5]} 9. Bg3 {[%clk 0:03:00.5]} 9... cxd4 {[%clk
0:03:06.7]} 10. exd4 {[%clk 0:02:59.1]} 10... e5 {[%clk 0:03:07.6]} 11. dxe5
{[%clk 0:02:56.8]} 11... dxe5 {[%clk 0:03:09.5]} 12. Bb5 {[%clk 0:02:55.7]}
12... f6 {[%clk 0:03:03.1]} 13. Ne4 {[%clk 0:02:50.5]} 13... Kh8 {[%clk
0:02:48.3]} 14. c4 {[%clk 0:02:39.1]} 14... Nc7 {[%clk 0:02:15]} 15. Nd6 {[%clk
0:02:33.7]} 15... Qe7 {[%clk 0:02:10.7]} 16. Re1 {[%clk 0:02:12.4]} 16... Bg4
{[%clk 0:02:06.1]} 17. Nxb7 {[%clk 0:02:06.7]} 17... Bxf3 {[%clk 0:01:55]} 18.
Qxf3 {[%clk 0:02:02.3]} 18... Nd4 {[%clk 0:01:54.9]} 19. Qe4 {[%clk 0:01:47.8]}
19... Nce6 {[%clk 0:01:35.7]} 20. Na5 {[%clk 0:01:12]} 20... f5 {[%clk
0:01:34.4]} 21. Nc6 {[%clk 0:01:11.2]} 21... Nxc6 {[%clk 0:01:29]} 22. Qxc6
{[%clk 0:01:10.7]} 22... f4 {[%clk 0:01:30.1]} 23. Bh4 {[%clk 0:01:03.6]} 23...
g5 {[%clk 0:01:31.3]} 24. Qd7 {[%clk 0:00:58.4]} 24... Qf6 {[%clk 0:01:23.3]}
25. Rad1 {[%clk 0:00:43.9]} 25... Rad8 {[%clk 0:01:15.3]} 26. Qxa7 {[%clk
0:00:39.2]} 26... gxh4 {[%clk 0:01:09.6]} 27. c5 {[%clk 0:00:24.5]} 27... Rxd1
{[%clk 0:00:50.6]} 28. Rxd1 {[%clk 0:00:24]} 28... f3 {[%clk 0:00:38]} 29. c6
{[%clk 0:00:17.3]} 29... Nd4 {[%clk 0:00:34.7]} 30. g3 {[%clk 0:00:05.2]} 30...
hxg3 {[%clk 0:00:34.6]} 31. hxg3 {[%clk 0:00:04.5]} 31... Nxb5 {[%clk 0:00:35]}
32. Qc5 {[%clk 0:00:05.6]} 32... Nd4 {[%clk 0:00:26.7]} 33. c7 {[%clk
0:00:06.4]} 33... Rc8 {[%clk 0:00:27]} 34. Qd5 {[%clk 0:00:04.7]} 34... Qe7
{[%clk 0:00:21.5]} 35. Qb7 {[%clk 0:00:02.7]} 35... Qxc7 {[%clk 0:00:22.1]} 36.
Qe4 {[%clk 0:00:03.9]} 36... Qc2 {[%clk 0:00:22.4]} 37. Qe1 {[%clk 0:00:02.2]}
37... Ne2+ {[%clk 0:00:22]} 0

[Event "Torneo Nuevo Centro. Jornada 11"]
[Site "Chess.com"]
[Date "2020.08.28"]
[Round "8"]
[White "Luque Saiz, Andrés"]
[Black "Martin Ayala, David"]
[Result "1-0"]
[WhiteElo "2052"]
[BlackElo "1889"]
[TimeControl "180+2"]
[EndTime "11:55:59 PDT"]
[Termination "Victoria de Chuch1n por tiempo"]

1. e4 {[%clk 0:03:01.9]} 1... d5 {[%clk 0:03:00.2]} 2. exd5 {[%clk 0:03:02.5]}
2... Nf6 {[%clk 0:03:01.2]} 3. Bb5+ {[%clk 0:02:55.4]} 3... Bd7 {[%clk
0:03:01.5]} 4. Be2 {[%clk 0:02:55.3]} 4... Bf5 {[%clk 0:03:01.8]} 5. Nf3 {[%clk
0:02:55]} 5... Nxd5 {[%clk 0:03:02]} 6. d4 {[%clk 0:02:55.8]} 6... e6 {[%clk
0:03:01.1]} 7. O-O {[%clk 0:02:56.1]} 7... Be7 {[%clk 0:02:55.9]} 8. a3 {[%clk
0:02:56.1]} 8... O-O {[%clk 0:02:56.4]} 9. c4 {[%clk 0:02:56.9]} 9... Nf6 {[%clk
0:02:56.5]} 10. Nc3 {[%clk 0:02:57.3]} 10... Nbd7 {[%clk 0:02:56.1]} 11. Nh4
{[%clk 0:02:55.2]} 11... Bg6 {[%clk 0:02:47]} 12. Nxg6 {[%clk 0:02:54.9]} 12...
hxg6 {[%clk 0:02:47.6]} 13. Bf3 {[%clk 0:02:49.5]} 13... c6 {[%clk 0:02:47.8]}
14. Bf4 {[%clk 0:02:42.8]} 14... Nb6 {[%clk 0:02:48]} 15. b3 {[%clk 0:02:43]}
15... Rc8 {[%clk 0:02:41]} 16. Re1 {[%clk 0:02:26.9]} 16... Nh7 {[%clk
0:02:40.8]} 17. Qd3 {[%clk 0:02:17.2]} 17... Bf6 {[%clk 0:02:33.6]} 18. Rad1
{[%clk 0:02:15.9]} 18... Nd7 {[%clk 0:02:24]} 19. Ne4 {[%clk 0:02:04.2]} 19...
Re8 {[%clk 0:02:06.1]} 20. Nd6 {[%clk 0:01:53.9]} 20... Ng5 {[%clk 0:01:58.5]}
21. Nxe8 {[%clk 0:01:48.5]} 21... Qxe8 {[%clk 0:01:58.7]} 22. Bd6 {[%clk
0:01:29.3]} 22... Nb6 {[%clk 0:01:48]} 23. d5 {[%clk 0:01:17.4]} 23... Qd7
{[%clk 0:01:35.8]} 24. dxc6 {[%clk 0:01:11.5]} 24... bxc6 {[%clk 0:01:36.3]} 25.
Bc5 {[%clk 0:01:06.9]} 25... Qc7 {[%clk 0:01:26.6]} 26. a4 {[%clk 0:00:56.4]}
26... Rd8 {[%clk 0:01:19]} 27. Qe3 {[%clk 0:00:55.9]} 27... Nd7 {[%clk
0:01:16.6]} 28. Bd6 {[%clk 0:00:51.5]} 28... Qb7 {[%clk 0:01:10.4]} 29. b4
{[%clk 0:00:47.9]} 29... e5 {[%clk 0:00:46.4]} 30. b5 {[%clk 0:00:43.5]} 30...
e4 {[%clk 0:00:40.1]} 31. Bxe4 {[%clk 0:00:40.9]} 31... Nxe4 {[%clk 0:00:22.5]}
32. Qxe4 {[%clk 0:00:42.8]} 32... Qc8 {[%clk 0:00:19.8]} 33. bxc6 {[%clk
0:00:29.4]} 33... Nb6 {[%clk 0:00:20.5]} 34. c7 {[%clk 0:00:26.9]} 34... Rd7
{[%clk 0:00:20.9]} 35. Qe8+ {[%clk 0:00:26.4]} 35... Kh7 {[%clk 0:00:21.3]} 36.
Qxc8 {[%clk 0:00:19.5]} 36... Nxc8 {[%clk 0:00:22]} 37. c5 {[%clk 0:00:20.8]}
37... Bc3 {[%clk 0:00:15.8]} 38. Re8 {[%clk 0:00:20.7]} 38... Nxd6 {[%clk
0:00:14.6]} 39. cxd6 {[%clk 0:00:22.6]} 1

[Event "Torneo Nuevo Centro. Jornada 11"]
[Site "Chess.com"]
[Date "2020.08.28"]
[Round "8"]
[White "Ursariu, Nikolas Victor"]
[Black "Zamora Soler, Raul"]
[Result "0-1"]
[WhiteElo "1151"]
[BlackElo "1858"]
[TimeControl "180+2"]
[EndTime "11:56:00 PDT"]
[Termination "Victoria de rzamora80 por jaque mate"]

1. e4 {[%clk 0:03:01.9]} 1... c5 {[%clk 0:03:00.1]} 2. Nf3 {[%clk 0:03:01.8]}
2... Nc6 {[%clk 0:03:01.1]} 3. Nc3 {[%clk 0:03:01.8]} 3... e6 {[%clk 0:03:00.9]}
4. Bc4 {[%clk 0:02:58.5]} 4... Nge7 {[%clk 0:03:00]} 5. d3 {[%clk 0:02:56.8]}
5... d5 {[%clk 0:02:59.3]} 6. exd5 {[%clk 0:02:52.1]} 6... exd5 {[%clk
0:02:59.6]} 7. Bb3 {[%clk 0:02:51.9]} 7... Be6 {[%clk 0:02:52.2]} 8. O-O {[%clk
0:02:45.7]} 8... a6 {[%clk 0:02:47.3]} 9. Bf4 {[%clk 0:02:38.3]} 9... c4 {[%clk
0:02:47.4]} 10. Ba4 {[%clk 0:02:36.7]} 10... b5 {[%clk 0:02:48.2]} 11. dxc4
{[%clk 0:02:36.3]} 11... dxc4 {[%clk 0:02:47.5]} 12. Bxb5 {[%clk 0:02:34.2]}
12... axb5 {[%clk 0:02:46.7]} 13. a3 {[%clk 0:02:28.7]} 13... Ng6 {[%clk
0:02:35.8]} 14. Re1 {[%clk 0:02:16.6]} 14... Nxf4 {[%clk 0:02:35.8]} 15. Qxd8+
{[%clk 0:01:59.5]} 15... Rxd8 {[%clk 0:02:35.4]} 16. Re4 {[%clk 0:01:55.3]}
16... Bd6 {[%clk 0:02:25.3]} 17. Rd1 {[%clk 0:01:51.3]} 17... Bb8 {[%clk
0:02:20.4]} 18. Rxd8+ {[%clk 0:01:45.6]} 18... Nxd8 {[%clk 0:02:19]} 19. Re1
{[%clk 0:01:47.5]} 19... O-O {[%clk 0:02:18.8]} 20. Rd1 {[%clk 0:01:46.6]} 20...
Nc6 {[%clk 0:02:14.5]} 21. h3 {[%clk 0:01:38.1]} 21... b4 {[%clk 0:02:06.6]} 22.
axb4 {[%clk 0:01:35.5]} 22... Nxb4 {[%clk 0:02:07.5]} 23. Rd2 {[%clk 0:01:34.5]}
23... Nc6 {[%clk 0:01:59.1]} 24. Nd4 {[%clk 0:01:23.2]} 24... Nxd4 {[%clk
0:01:58.5]} 25. Rxd4 {[%clk 0:01:19.7]} 25... Be5 {[%clk 0:01:59.2]} 26. Re4
{[%clk 0:01:18.9]} 26... Bxc3 {[%clk 0:01:59.9]} 27. bxc3 {[%clk 0:01:17.2]}
27... Nd5 {[%clk 0:01:56]} 28. Rxc4 {[%clk 0:01:14]} 28... Rc8 {[%clk
0:01:55.6]} 29. Rxc8+ {[%clk 0:01:12.2]} 29... Bxc8 {[%clk 0:01:54.5]} 30. c4
{[%clk 0:01:13]} 30... Nf6 {[%clk 0:01:51.7]} 31. Kf1 {[%clk 0:01:10.6]} 31...
Kf8 {[%clk 0:01:51.6]} 32. Ke2 {[%clk 0:01:11]} 32... Ke7 {[%clk 0:01:52.5]} 33.
Kd3 {[%clk 0:01:12.9]} 33... Kd6 {[%clk 0:01:51.3]} 34. Kd4 {[%clk 0:01:13.1]}
34... Be6 {[%clk 0:01:51.1]} 35. c5+ {[%clk 0:01:12.3]} 35... Kc6 {[%clk
0:01:52.3]} 36. h4 {[%clk 0:01:08.9]} 36... Nd7 {[%clk 0:01:53.1]} 37. c3 {[%clk
0:01:05.1]} 37... Nxc5 {[%clk 0:01:54]} 38. c4 {[%clk 0:01:04.7]} 38... Nb3+
{[%clk 0:01:54.1]} 39. Kc3 {[%clk 0:00:58.6]} 39... Na5 {[%clk 0:01:52.2]} 40.
Kb4 {[%clk 0:00:57]} 40... Nxc4 {[%clk 0:01:50.8]} 41. Kc3 {[%clk 0:00:57.6]}
41... Kc5 {[%clk 0:01:50.1]} 42. Kd3 {[%clk 0:00:59.5]} 42... Kd5 {[%clk
0:01:50.4]} 43. Kc3 {[%clk 0:01:01.4]} 43... h5 {[%clk 0:01:48.8]} 44. Kd3
{[%clk 0:00:57.7]} 44... Bf5+ {[%clk 0:01:48]} 45. Ke2 {[%clk 0:00:59.6]} 45...
f6 {[%clk 0:01:48.1]} 46. Kf3 {[%clk 0:01:01.5]} 46... g5 {[%clk 0:01:48.8]} 47.
hxg5 {[%clk 0:01:00.7]} 47... fxg5 {[%clk 0:01:49.7]} 48. Kg3 {[%clk 0:00:57]}
48... Ne5 {[%clk 0:01:49.5]} 49. Kh2 {[%clk 0:00:50.4]} 49... h4 {[%clk
0:01:49.6]} 50. g3 {[%clk 0:00:50.2]} 50... h3 {[%clk 0:01:49.2]} 51. f4 {[%clk
0:00:47.7]} 51... Nf3+ {[%clk 0:01:44.3]} 52. Kh1 {[%clk 0:00:42.2]} 52... gxf4
{[%clk 0:01:44.8]} 53. gxf4 {[%clk 0:00:41.1]} 53... h2 {[%clk 0:01:45.6]} 54.
Kg2 {[%clk 0:00:39.1]} 54... Ke4 {[%clk 0:01:46.6]} 55. Kh1 {[%clk 0:00:37.9]}
55... Kxf4 {[%clk 0:01:47.6]} 56. Kg2 {[%clk 0:00:37.9]} 56... Kg4 {[%clk
0:01:43]} 57. Kh1 {[%clk 0:00:36.8]} 57... Bd3 {[%clk 0:01:43.9]} 58. Kg2 {[%clk
0:00:35.8]} 58... Bf1+ {[%clk 0:01:41]} 59. Kh1 {[%clk 0:00:33.3]} 59... Nd2
{[%clk 0:01:41.7]} 60. Kxh2 {[%clk 0:00:32.2]} 60... Bh3 {[%clk 0:01:41.8]} 61.
Kg1 {[%clk 0:00:31.4]} 61... Kg3 {[%clk 0:01:42.8]} 62. Kh1 {[%clk 0:00:29.8]}
62... Bg2+ {[%clk 0:01:43.7]} 63. Kg1 {[%clk 0:00:30]} 63... Nf3# {[%clk
0:01:44.2]} 0

[Event "Torneo Nuevo Centro. Jornada 11"]
[Site "Chess.com"]
[Date "2020.08.28"]
[Round "8"]
[White "Cayon Pelaez, Pablo"]
[Black "Gimenez Saiz, Jose Raul"]
[Result "0-1"]
[WhiteElo "1789"]
[BlackElo "1838"]
[TimeControl "180+2"]
[EndTime "11:56:17 PDT"]
[Termination "Victoria de rango013 por abandono"]

1. e4 {[%clk 0:03:01.9]} 1... d6 {[%clk 0:02:58.8]} 2. d4 {[%clk 0:03:02.6]}
2... Nf6 {[%clk 0:02:56.1]} 3. Bd3 {[%clk 0:03:00.2]} 3... g6 {[%clk 0:02:48.1]}
4. c3 {[%clk 0:02:56.5]} 4... e5 {[%clk 0:02:45]} 5. Nf3 {[%clk 0:02:38.4]} 5...
Bg7 {[%clk 0:02:33.8]} 6. O-O {[%clk 0:02:29.5]} 6... O-O {[%clk 0:02:33.5]} 7.
Bg5 {[%clk 0:01:57.1]} 7... h6 {[%clk 0:02:30]} 8. Bh4 {[%clk 0:01:57.3]} 8...
g5 {[%clk 0:02:28.7]} 9. Bg3 {[%clk 0:01:57.6]} 9... Nh5 {[%clk 0:02:28.5]} 10.
dxe5 {[%clk 0:01:38.1]} 10... Nxg3 {[%clk 0:02:28.6]} 11. hxg3 {[%clk
0:01:34.7]} 11... dxe5 {[%clk 0:02:29.2]} 12. Bc4 {[%clk 0:01:26]} 12... c6
{[%clk 0:02:16.9]} 13. Na3 {[%clk 0:01:19.7]} 13... Nd7 {[%clk 0:02:17.1]} 14.
Qd2 {[%clk 0:01:14]} 14... Qe7 {[%clk 0:02:14.9]} 15. Rfd1 {[%clk 0:01:08.2]}
15... Nc5 {[%clk 0:02:15.1]} 16. Qc2 {[%clk 0:01:03.5]} 16... Bg4 {[%clk
0:02:10.3]} 17. Be2 {[%clk 0:00:49.4]} 17... Kh8 {[%clk 0:02:04.6]} 18. Nc4
{[%clk 0:00:46.9]} 18... f5 {[%clk 0:01:57.4]} 19. exf5 {[%clk 0:00:34.6]} 19...
Bxf5 {[%clk 0:01:54.7]} 20. Qd2 {[%clk 0:00:30.6]} 20... Rad8 {[%clk 0:01:40.8]}
21. Qe3 {[%clk 0:00:31.5]} 21... Be4 {[%clk 0:01:03.6]} 22. b4 {[%clk 0:00:27]}
22... Bxf3 {[%clk 0:00:57.7]} 23. Bxf3 {[%clk 0:00:25.9]} 23... Na4 {[%clk
0:00:57.8]} 24. Re1 {[%clk 0:00:21.4]} 24... e4 {[%clk 0:00:48.4]} 25. Bxe4
{[%clk 0:00:20.9]} 25... Nxc3 {[%clk 0:00:48.5]} 26. Rac1 {[%clk 0:00:10.8]}
26... Bd4 {[%clk 0:00:33.7]} 27. Qe2 {[%clk 0:00:02.7]} 27... Nxe2+ {[%clk
0:00:33.9]} 28. Rxe2 {[%clk 0:00:04.1]} 28... b5 {[%clk 0:00:29.1]} 29. Nd2
{[%clk 0:00:04.4]} 29... Qf6 {[%clk 0:00:21]} 30. Bf3 {[%clk 0:00:04.8]} 30...
g4 {[%clk 0:00:21.3]} 31. Rxc6 {[%clk 0:00:05.4]} 31... Qg5 {[%clk 0:00:17.9]}
32. Bd5 {[%clk 0:00:04.7]} 32... Rxd5 {[%clk 0:00:13.3]} 33. Rce6 {[%clk
0:00:05.8]} 33... Rdf5 {[%clk 0:00:12.6]} 34. R6e4 {[%clk 0:00:06.6]} 34...
Bxf2+ {[%clk 0:00:10.6]} 35. Kf1 {[%clk 0:00:07.9]} 35... Bxg3+ {[%clk
0:00:11.2]} 36. Kg1 {[%clk 0:00:08.5]} 36... Rf1+ {[%clk 0:00:09.2]} 37. Nxf1
{[%clk 0:00:09.3]} 37... Qc1 {[%clk 0:00:09.1]} 38. Re1 {[%clk 0:00:05.1]} 38...
Bxe1 {[%clk 0:00:09.7]} 39. Kh2 {[%clk 0:00:06.7]} 39... Rxf1 {[%clk 0:00:09]}
40. Re8+ {[%clk 0:00:07.3]} 40... Kg7 {[%clk 0:00:10.9]} 41. Re7+ {[%clk
0:00:08.9]} 41... Kf6 {[%clk 0:00:12.3]} 42. Rxa7 {[%clk 0:00:08.7]} 42... Qc3
{[%clk 0:00:12.4]} 0

[Event "Torneo Nuevo Centro. Jornada 11"]
[Site "Chess.com"]
[Date "2020.08.28"]
[Round "8"]
[White "Casado Andreu, David"]
[Black "Sampedro Roig, Josep Francesc"]
[Result "0-1"]
[WhiteElo "1580"]
[BlackElo "1848"]
[TimeControl "180+2"]
[EndTime "11:56:19 PDT"]
[Termination "Victoria de Abrekurios por abandono"]

1. e4 {[%clk 0:03:01.9]} 1... Nf6 {[%clk 0:03:01.9]} 2. e5 {[%clk 0:03:02.2]}
2... Nd5 {[%clk 0:03:02.7]} 3. d4 {[%clk 0:03:03.5]} 3... d6 {[%clk 0:03:03.6]}
4. c4 {[%clk 0:03:04.8]} 4... Nb6 {[%clk 0:03:04.4]} 5. exd6 {[%clk 0:03:06.4]}
5... cxd6 {[%clk 0:03:05.2]} 6. Be2 {[%clk 0:02:57.8]} 6... g6 {[%clk
0:03:05.6]} 7. Be3 {[%clk 0:02:54.1]} 7... Bg7 {[%clk 0:03:05.9]} 8. Nc3 {[%clk
0:02:54.6]} 8... O-O {[%clk 0:03:06]} 9. Rc1 {[%clk 0:02:54]} 9... Nc6 {[%clk
0:03:06.2]} 10. d5 {[%clk 0:02:46.3]} 10... Ne5 {[%clk 0:02:58.3]} 11. b3 {[%clk
0:02:44.5]} 11... e6 {[%clk 0:02:25.5]} 12. dxe6 {[%clk 0:02:15.9]} 12... fxe6
{[%clk 0:02:14.1]} 13. Nf3 {[%clk 0:02:17.8]} 13... Ng4 {[%clk 0:02:04]} 14. Bg5
{[%clk 0:02:08.9]} 14... Qc7 {[%clk 0:01:04.7]} 15. O-O {[%clk 0:02:06.5]} 15...
a6 {[%clk 0:01:05.1]} 16. h3 {[%clk 0:01:59.4]} 16... Nf6 {[%clk 0:01:03.2]} 17.
Qd2 {[%clk 0:02:00.2]} 17... Ne8 {[%clk 0:00:33.2]} 18. Rfe1 {[%clk 0:01:53.1]}
18... Bd7 {[%clk 0:00:32.5]} 19. Bh6 {[%clk 0:01:41.4]} 19... Bc6 {[%clk
0:00:28.7]} 20. Nd4 {[%clk 0:01:37.6]} 20... Bxh6 {[%clk 0:00:19.1]} 21. Qxh6
{[%clk 0:01:30.4]} 21... Ng7 {[%clk 0:00:21]} 22. Bg4 {[%clk 0:01:24]} 22... Nd7
{[%clk 0:00:19.1]} 23. Bxe6+ {[%clk 0:01:19.9]} 23... Kh8 {[%clk 0:00:15.5]} 24.
Bd5 {[%clk 0:01:18.2]} 24... Ne5 {[%clk 0:00:12.6]} 25. Qe3 {[%clk 0:01:10.5]}
25... Rad8 {[%clk 0:00:12.8]} 26. f4 {[%clk 0:01:06]} 26... Nf7 {[%clk 0:00:10]}
27. Bxf7 {[%clk 0:01:05.4]} 27... Rxf7 {[%clk 0:00:10.5]} 28. Ne6 {[%clk
0:01:02.6]} 28... Nxe6 {[%clk 0:00:10.3]} 29. Qxe6 {[%clk 0:01:04.5]} 29... Rdf8
{[%clk 0:00:09.2]} 30. Rf1 {[%clk 0:00:50.9]} 30... Qb6+ {[%clk 0:00:07.8]} 31.
Kh2 {[%clk 0:00:50.7]} 31... Qd4 {[%clk 0:00:08.3]} 32. Nd5 {[%clk 0:00:45]}
32... Bxd5 {[%clk 0:00:07.3]} 33. cxd5 {[%clk 0:00:41.4]} 33... Rxf4 {[%clk
0:00:08.2]} 34. Rxf4 {[%clk 0:00:39.9]} 34... Qxf4+ {[%clk 0:00:09]} 35. Kg1
{[%clk 0:00:40.8]} 35... Qxc1+ {[%clk 0:00:10.2]} 36. Kh2 {[%clk 0:00:40.5]}
36... Qf4+ {[%clk 0:00:11.5]} 37. Kg1 {[%clk 0:00:41.2]} 37... Qf6 {[%clk
0:00:12.6]} 38. Qe2 {[%clk 0:00:40.2]} 38... Qf7 {[%clk 0:00:13.1]} 39. Qd2
{[%clk 0:00:38.2]} 39... Re8 {[%clk 0:00:13.9]} 40. Kh2 {[%clk 0:00:38.2]} 40...
Re5 {[%clk 0:00:14.9]} 41. Qc3 {[%clk 0:00:37.8]} 41... Qxd5 {[%clk 0:00:15.8]}
42. Qc8+ {[%clk 0:00:38.9]} 42... Kg7 {[%clk 0:00:15.7]} 43. Qd7+ {[%clk
0:00:40.2]} 43... Kh6 {[%clk 0:00:16]} 44. Qg4 {[%clk 0:00:30]} 44... Re4 {[%clk
0:00:13.6]} 45. Qf3 {[%clk 0:00:21.2]} 45... Qe5+ {[%clk 0:00:14.3]} 46. Kh1
{[%clk 0:00:20]} 46... Re1+ {[%clk 0:00:14.9]} 0

[Event "Torneo Nuevo Centro. Jornada 11"]
[Site "Chess.com"]
[Date "2020.08.28"]
[Round "8"]
[White "Méndez Giménez , Néstor Emmanuel"]
[Black "Más Ripoll, Vicente"]
[Result "1-0"]
[WhiteElo "1241"]
[BlackElo "1070"]
[TimeControl "180+2"]
[EndTime "11:56:22 PDT"]
[Termination "Victoria de NestorMendez8 por jaque mate"]

1. e4 {[%clk 0:03:01.9]} 1... c5 {[%clk 0:03:00]} 2. Nf3 {[%clk 0:03:01.8]} 2...
e6 {[%clk 0:03:00.2]} 3. d4 {[%clk 0:03:01.8]} 3... cxd4 {[%clk 0:03:00.9]} 4.
Nxd4 {[%clk 0:03:01.4]} 4... Nc6 {[%clk 0:03:01.6]} 5. Nxc6 {[%clk 0:03:01]}
5... bxc6 {[%clk 0:03:02]} 6. Nc3 {[%clk 0:03:00.5]} 6... Bb7 {[%clk 0:03:01.1]}
7. Be3 {[%clk 0:03:00.7]} 7... c5 {[%clk 0:02:58.3]} 8. g3 {[%clk 0:03:00.5]}
8... Nf6 {[%clk 0:02:53.7]} 9. Bg2 {[%clk 0:03:00.6]} 9... Be7 {[%clk
0:02:48.1]} 10. O-O {[%clk 0:03:00.4]} 10... O-O {[%clk 0:02:48]} 11. Bg5 {[%clk
0:02:58.5]} 11... Ne8 {[%clk 0:02:39.1]} 12. Bxe7 {[%clk 0:02:58.6]} 12... Qxe7
{[%clk 0:02:39.4]} 13. Nb5 {[%clk 0:02:54.5]} 13... Nf6 {[%clk 0:02:27.7]} 14.
Nc7 {[%clk 0:02:48.2]} 14... Rab8 {[%clk 0:02:07.6]} 15. Qe2 {[%clk 0:02:45.4]}
15... a6 {[%clk 0:01:54.6]} 16. Nxa6 {[%clk 0:02:40.6]} 16... Bxa6 {[%clk
0:01:47.5]} 17. Qxa6 {[%clk 0:02:39.8]} 17... Rxb2 {[%clk 0:01:46.1]} 18. Qd3
{[%clk 0:02:34.7]} 18... Rd8 {[%clk 0:01:39.5]} 19. e5 {[%clk 0:02:33.7]} 19...
Ne8 {[%clk 0:01:34.2]} 20. Rfb1 {[%clk 0:02:26.5]} 20... Rbb8 {[%clk 0:01:27.6]}
21. Be4 {[%clk 0:02:11.1]} 21... f5 {[%clk 0:01:24.3]} 22. Bg2 {[%clk
0:02:09.1]} 22... d6 {[%clk 0:01:06.2]} 23. Rxb8 {[%clk 0:02:06.5]} 23... Rxb8
{[%clk 0:01:05]} 24. exd6 {[%clk 0:02:06.8]} 24... Nxd6 {[%clk 0:01:02.5]} 25.
Rd1 {[%clk 0:02:06.4]} 25... Rd8 {[%clk 0:00:55.6]} 26. Qa6 {[%clk 0:02:06]}
26... Rd7 {[%clk 0:00:38.7]} 27. Qa8+ {[%clk 0:01:47.2]} 27... Rd8 {[%clk
0:00:37.3]} 28. Qa5 {[%clk 0:01:34.9]} 28... Kf7 {[%clk 0:00:37]} 29. h3 {[%clk
0:01:33.9]} 29... c4 {[%clk 0:00:32.9]} 30. g4 {[%clk 0:01:32.8]} 30... fxg4
{[%clk 0:00:29]} 31. hxg4 {[%clk 0:01:33.4]} 31... Nb7 {[%clk 0:00:23.5]} 32.
Qa7 {[%clk 0:01:31.4]} 32... Rxd1+ {[%clk 0:00:23.1]} 33. Kh2 {[%clk 0:01:31.5]}
33... Rd2 {[%clk 0:00:21.4]} 34. Kh3 {[%clk 0:01:17]} 34... Nc5 {[%clk
0:00:21.1]} 35. Qa5 {[%clk 0:01:07.9]} 35... Rxf2 {[%clk 0:00:18.2]} 36. Kg3
{[%clk 0:01:07.5]} 36... Rxc2 {[%clk 0:00:18.5]} 37. Bf3 {[%clk 0:01:03.6]}
37... h6 {[%clk 0:00:09.1]} 38. a4 {[%clk 0:00:59.3]} 38... Qd6+ {[%clk
0:00:09]} 39. Kh3 {[%clk 0:00:57.2]} 39... Nb7 {[%clk 0:00:07]} 40. Qh5+ {[%clk
0:00:49.3]} 40... Kg8 {[%clk 0:00:05.4]} 41. Qe8+ {[%clk 0:00:45.4]} 41... Kh7
{[%clk 0:00:05.4]} 42. Be4+ {[%clk 0:00:42.7]} 42... g6 {[%clk 0:00:04.2]} 43.
Qf7+ {[%clk 0:00:41.9]} 43... Kh8 {[%clk 0:00:03.3]} 44. Qe8+ {[%clk 0:00:27.7]}
44... Kh7 {[%clk 0:00:04]} 45. Qxg6+ {[%clk 0:00:27.1]} 45... Kh8 {[%clk
0:00:04.4]} 46. Qh7# {[%clk 0:00:25.7]} 1